fUSD/lending_fUSD_20240105
["ID","MTS","AMOUNT","RATE_DAILY","PERIOD"]
[310331464,1704473544657,-7694.9988864,0.00034876,2]
[310331465,1704473544666,-1787.7805254,0.00034876,2]
[310331466,1704473544676,-37600.9647261,0.00034876,2]
[310331467,1704473544685,-150.0,0.00034877,2]
[310331468,1704473544695,-150.0,0.0003489,2]
[310331469,1704473544704,-1642.11985993,0.00034899,2]
[310331470,1704473544713,-190.4218231,0.00034899,2]
[310331471,1704473544723,-150.0,0.00034899,2]
[310331472,1704473544732,-190.4218231,0.00034899,2]
[310331473,1704473544741,-150.0,0.00034899,2]
[310331474,1704473544751,-190.4218231,0.00034899,2]
[310331475,1704473544761,-150.0,0.00034899,2]
[310331476,1704473544770,-2965483.47683393,0.000349,6]
[310331477,1704473544780,-507.67579574,0.000349,2]
[310331478,1704473544790,-10840.9603554,0.000349,2]
[310331479,1704473544800,-2000.0,0.000349,2]
[310331480,1704473544809,-2000.0,0.000349,3]
[310331481,1704473544819,-2000.0,0.000349,3]
[310331482,1704473544829,-2000.0,0.000349,3]
[310331483,1704473544838,-2000.0,0.000349,3]
[310331484,1704473544847,-2000.0,0.000349,3]
[310331485,1704473544857,-2000.0,0.000349,3]
[310331486,1704473544867,-2000.0,0.000349,3]
[310331487,1704473544877,-1847.19,0.000349,3]
[310331488,1704473544886,-3000.0,0.000349,2]
[310331489,1704473544898,-1963.278673,0.000349,2]
[310331490,1704473544912,-2002.478851,0.000349,2]
[310331491,1704473544922,-2002.47885082,0.000349,2]
[310331492,1704473544931,-2002.47885082,0.000349,2]
[310331493,1704473544941,-2002.47885082,0.000349,2]
[310331494,1704473544950,-300.0,0.000349,8]
[310331495,1704473544960,-304.531688,0.000349,2]
[310331496,1704473544969,-3470.69110002,0.000349,2]
[310331497,1704473544979,-3470.69109996,0.000349,2]
[310331498,1704473544988,-3470.69109996,0.000349,2]
[310331499,1704473544998,-3470.69109996,0.000349,2]
[310331500,1704473545008,-3470.69109996,0.000349,2]
[310331501,1704473545018,-3470.69109996,0.000349,2]
[310331502,1704473545028,-3470.69109996,0.000349,2]
[310331503,1704473545037,-3470.69109996,0.000349,2]
[310331504,1704473545047,-3470.69109996,0.000349,2]
[310331505,1704473545057,-1295.388827,0.000349,2]
[310331506,1704473545066,-3980.32,0.00034904,3]
[310331507,1704473545076,-500.0,0.00034925,2]
[310331508,1704473545085,-18971.911769,0.00034931,2]
[310331509,1704473545095,-121922.728602,0.00034931,2]
[310331510,1704473545104,-803.0,0.00034934,2]
[310331511,1704473545113,-200.0,0.00034987,2]
[310331512,1704473545122,-456.40105,0.00034988,3]
[310331513,1704473545131,-7330.06653122,0.0003499,5]
[310331514,1704473545141,-190.4218231,0.00034999,2]
[310331515,1704473545151,-190.4218231,0.00034999,2]
[310331516,1704473545160,-150.0,0.00034999,2]
[310331517,1704473545170,-150.0,0.00034999,2]
[310331518,1704473545180,-190.4218231,0.00034999,2]
[310331519,1704473545190,-150.0,0.00034999,2]
[310331520,1704473545199,-190.4218231,0.00034999,2]
[310331521,1704473545209,-150.0,0.00034999,2]
[310331522,1704473545218,-150.0,0.00034999,2]
[310331523,1704473545228,-190.4218231,0.00034999,2]
[310331524,1704473545238,-100000.0,0.00035,5]
[310331525,1704473545248,-155.15936697,0.00035,4]
[310331526,1704473545258,-891.45393443,0.00035,2]
[310331527,1704473545267,-447.64121143,0.00035,4]
[310331528,1704473545276,-2500.0,0.00035,2]
[310331529,1704473545286,-201.52702081,0.00035,2]
[310331530,1704473545295,-619.33065497,0.00035,4]
[310331531,1704473545305,-1500.0,0.00035,7]
[310331532,1704473545314,-1000.0,0.00035,6]
[310331533,1704473545324,-1000.0,0.00035,5]
[310331534,1704473545333,-1509.0,0.00035,2]
[310331535,1704473545342,-200.0,0.00035,5]
[310331536,1704473545351,-204.29324935,0.00035,14]
[310331537,1704473545361,-200.0,0.00035,5]
[310331538,1704473545370,-12215.05399539,0.00035,7]
[310331539,1704473545380,-151.546,0.00035,7]
[310331540,1704473545389,-22191.02838864,0.00035,4]
[310331541,1704473545398,-28194.72187463,0.00035,7]
[310331542,1704473545408,-200.0,0.00035,5]
[310331543,1704473545417,-3317.86124011,0.00035,7]
[310331544,1704473545426,-155.0,0.00035,2]
[310331545,1704473545437,-18844.0,0.00035,9]
[310331546,1704473545447,-412.9956239,0.00035,10]
[310331547,1704473545456,-6252020.40029427,0.00035,2]
[310331548,1704473545466,-240.84351206,0.00035,4]
[310331549,1704473545476,-134728.04575865,0.00035,4]
[310331550,1704473545486,-500.0,0.00035,3]
[310331551,1704473545496,-3000.0,0.00035,2]
[310331552,1704473545507,-1879.68139,0.00035,2]
[310331553,1704473545516,-1177.92596163,0.00035,2]
[310331554,1704473545526,-1177.92596163,0.00035,2]
[310331555,1704473545536,-1177.92596163,0.00035,2]
[310331556,1704473545547,-200.0,0.00035,5]
[310331557,1704473545557,-119840.07497571,0.00035,2]
[310331558,1704473545568,-119840.07497571,0.00035,2]
[310331559,1704473545578,-119840.07497571,0.00035,2]
[310331560,1704473545588,-119840.07497571,0.00035,2]
[310331561,1704473545598,-1540.51114851,0.00035,2]
[310331562,1704473545607,-1540.51114851,0.00035,2]
[310331563,1704473545617,-1540.51114851,0.00035,2]
[310331564,1704473545628,-22056.92745028,0.00035,5]
[310331565,1704473545638,-17877.76,0.00035,2]
[310331566,1704473545648,-4855.56508157,0.00035,7]
[310331567,1704473545659,-13100.78531859,0.00035,4]
[310331568,1704473545669,-3000.0,0.0003501,2]
[310331569,1704473545678,-19305.34571518,0.0003502,10]
[310331570,1704473545688,-50000.0,0.0003502,10]
[310331571,1704473545698,-5043.52156809,0.0003502,10]
[310331572,1704473545707,-10491.13192489,0.0003502,10]
[310331573,1704473545717,-22807.07860716,0.0003502,10]
[310331574,1704473545727,-42661.16184198,0.0003502,10]
[310331575,1704473545737,-11606.48365521,0.0003502,10]
[310331576,1704473545747,-3000.0,0.0003502,2]
[310331577,1704473545757,-18295.67883629,0.0003502,10]
[310331578,1704473545767,-3000.0,0.0003503,2]
[310331579,1704473545778,-5181.689242,0.0003504,2]
[310331580,1704473545788,-150.34853113,0.00035059,2]
[310331581,1704473545798,-150.0,0.00035067,2]
[310331582,1704473545808,-190.4218231,0.00035067,2]
[310331583,1704473545818,-785.36,0.00035068,3]
[310331584,1704473545828,-563.9,0.00035068,3]
[310331585,1704473545838,-500.0,0.00035068,3]
[310331586,1704473545848,-551.64,0.00035068,3]
[310331587,1704473545858,-679.76,0.00035068,2]
[310331588,1704473545868,-500.0,0.00035068,3]
[310331589,1704473545878,-500.0,0.00035068,3]
[310331590,1704473545889,-500.0,0.00035068,3]
[310331591,1704473545901,-732.22,0.00035068,3]
[310331592,1704473545913,-500.0,0.00035068,3]
[310331593,1704473545922,-500.0,0.00035068,3]
[310331594,1704473545932,-557.95,0.00035068,3]
[310331595,1704473545942,-711.61,0.00035068,3]
[310331596,1704473545953,-777.32,0.00035068,3]
[310331597,1704473545962,-500.0,0.00035068,3]
[310331598,1704473545972,-23714.889711,0.00035068,2]
[310331599,1704473545982,-500.0,0.00035068,3]
[310331600,1704473545992,-500.0,0.00035068,3]
[310331601,1704473546002,-500.0,0.00035068,3]
[310331602,1704473546011,-500.0,0.00035068,3]
[310331603,1704473546022,-592.48,0.00035068,3]
[310331604,1704473546032,-152403.410753,0.00035068,2]
[310331605,1704473546042,-996.51,0.00035068,3]
[310331606,1704473546052,-500.0,0.00035068,3]
[310331607,1704473546063,-500.0,0.00035068,3]
[310331608,1704473546073,-500.0,0.00035068,3]
[310331609,1704473546083,-710.5,0.00035068,3]
[310331610,1704473546094,-500.0,0.00035068,3]
[310331611,1704473546104,-666.1,0.00035068,3]
[310331612,1704473546115,-537.71,0.00035068,3]
[310331613,1704473546126,-617.72,0.00035068,3]
[310331614,1704473546137,-500.0,0.00035068,3]
[310331615,1704473546146,-500.0,0.00035068,3]
[310331616,1704473546157,-647.0,0.00035068,3]
[310331617,1704473546166,-772.2,0.00035068,3]
[310331618,1704473546177,-537.87,0.00035068,3]
[310331619,1704473546188,-500.0,0.00035068,3]
[310331620,1704473546200,-1038.34,0.00035068,3]
[310331621,1704473546210,-500.0,0.00035068,3]
[310331622,1704473546220,-500.0,0.00035068,3]
[310331623,1704473546230,-544.08,0.00035068,3]
[310331624,1704473546241,-656.98,0.00035068,3]
[310331625,1704473546251,-500.0,0.00035068,3]
[310331626,1704473546261,-669.87,0.00035068,3]
[310331627,1704473546272,-694.38,0.00035068,3]
[310331628,1704473546282,-742.45,0.00035068,3]
[310331629,1704473546292,-477.49382978,0.00035068,3]
[310331630,1704473546303,-475.76092324,0.00035068,3]
[310331631,1704473546313,-544.16,0.00035068,3]
[310331632,1704473546325,-671.99,0.00035068,3]
[310331633,1704473546335,-669.51,0.00035068,3]
[310331634,1704473546346,-548.59,0.00035068,3]
[310331635,1704473546357,-1530.36,0.00035068,3]
[310331636,1704473546367,-583.81,0.00035068,3]
[310331637,1704473546378,-500.0,0.00035068,3]
[310331638,1704473546389,-500.0,0.00035068,3]
[310331639,1704473546400,-500.0,0.00035068,3]
[310331640,1704473546410,-500.0,0.00035068,3]
[310331641,1704473546421,-754.95,0.00035068,3]
[310331642,1704473546432,-500.0,0.00035068,3]
[310331643,1704473546443,-500.0,0.00035068,3]
[310331644,1704473546454,-1275.01,0.00035068,3]
[310331645,1704473546464,-500.0,0.00035068,3]
[310331646,1704473546474,-588.9,0.00035068,3]
[310331647,1704473546483,-843.96,0.00035068,3]
[310331648,1704473546494,-207.89,0.00035068,3]
[310331649,1704473546503,-807.23,0.00035068,3]
[310331650,1704473546513,-500.0,0.00035068,3]
[310331651,1704473546524,-721.09,0.00035068,3]
[310331652,1704473546533,-500.0,0.00035068,3]
[310331653,1704473546543,-527.92444124,0.00035068,3]
[310331654,1704473546554,-593.3,0.00035068,3]
[310331655,1704473546565,-500.0,0.00035068,3]
[310331656,1704473546575,-1537.14,0.00035068,3]
[310331657,1704473546585,-1588.31,0.00035068,3]
[310331658,1704473546596,-5973.26,0.00035068,3]
[310331659,1704473546606,-562.91,0.00035068,3]
[310331660,1704473546616,-1752.6,0.00035068,3]
[310331661,1704473546625,-3119.17,0.00035068,3]
[310331662,1704473546635,-1026.31,0.00035068,3]
[310331663,1704473546646,-1346.93,0.00035068,3]
[310331664,1704473546656,-500.0,0.00035068,3]
[310331665,1704473546666,-1520.28,0.00035068,3]
[310331666,1704473546676,-500.0,0.00035068,3]
[310331667,1704473546686,-621.93,0.00035068,3]
[310331668,1704473546697,-871.85,0.00035068,3]
[310331669,1704473546708,-522.5,0.00035068,3]
[310331670,1704473546718,-790.33,0.00035068,3]
[310331671,1704473546728,-2085.78,0.00035068,3]
[310331672,1704473546737,-651.26,0.00035068,3]
[310331673,1704473546747,-1658.28,0.00035068,3]
[310331674,1704473546757,-2368.93,0.00035068,3]
[310331675,1704473546767,-500.0,0.00035068,3]
[310331676,1704473546777,-2545.82,0.00035068,3]
[310331677,1704473546787,-500.0,0.00035068,3]
[310331678,1704473546798,-5035.78,0.00035068,3]
[310331679,1704473546808,-1615.12,0.00035068,3]
[310331680,1704473546818,-3964.99,0.00035068,3]
[310331681,1704473546828,-900.42,0.00035068,3]
[310331682,1704473546838,-855.65,0.00035068,3]
[310331683,1704473546848,-527.61,0.00035068,3]
[310331684,1704473546858,-500.0,0.00035068,3]
[310331685,1704473546868,-3932.79,0.00035068,3]
[310331686,1704473546878,-15880.58,0.00035068,3]
[310331687,1704473546887,-500.0,0.00035068,3]
[310331688,1704473546898,-630.59,0.00035068,3]
[310331689,1704473546913,-2821.0,0.00035068,3]
[310331690,1704473546923,-1090.66,0.00035068,3]
[310331691,1704473546934,-571.91944774,0.00035068,3]
[310331692,1704473546945,-1511.19,0.00035068,3]
[310331693,1704473546956,-668.86,0.00035068,3]
[310331694,1704473546967,-319.50643402,0.00035068,3]
[310331695,1704473546977,-1950.6,0.00035068,3]
[310331696,1704473546988,-7990.73,0.00035068,3]
[310331697,1704473546999,-2431.79,0.00035068,3]
[310331698,1704473547010,-1509.04,0.00035068,3]
[310331699,1704473547021,-752.06,0.00035068,3]
[310331700,1704473547032,-527.49,0.00035068,3]
[310331701,1704473547042,-555.27,0.00035068,3]
[310331702,1704473547057,-6614.78,0.00035068,3]
[310331703,1704473547068,-1289.91,0.00035068,3]
[310331704,1704473547079,-1136.89,0.00035068,3]
[310331705,1704473547090,-646.07,0.00035068,3]
[310331706,1704473547100,-500.0,0.00035068,3]
[310331707,1704473547111,-1154.77,0.00035068,3]
[310331708,1704473547121,-588.45,0.00035068,3]
[310331709,1704473547131,-1148.85,0.00035068,3]
[310331710,1704473547141,-864.89,0.00035068,3]
[310331711,1704473547152,-746.81,0.00035068,3]
[310331712,1704473547163,-1747.09,0.00035068,3]
[310331713,1704473547174,-1086.86,0.00035068,3]
[310331714,1704473547184,-585.14,0.00035068,3]
[310331715,1704473547194,-500.0,0.00035068,3]
[310331716,1704473547205,-898.8,0.00035068,3]
[310331717,1704473547215,-581.39,0.00035068,3]
[310331718,1704473547225,-680.71,0.00035068,3]
[310331719,1704473547236,-2794.23,0.00035068,3]
[310331720,1704473547247,-2835.72,0.00035068,3]
[310331721,1704473547257,-2858.86,0.00035068,3]
[310331722,1704473547266,-533.41,0.00035068,3]
[310331723,1704473547276,-2517.57,0.00035068,3]
[310331724,1704473547286,-500.0,0.00035068,3]
[310331725,1704473547297,-2511.86,0.00035068,3]
[310331726,1704473547307,-500.0,0.00035068,3]
[310331727,1704473547318,-2755.52,0.00035068,3]
[310331728,1704473547328,-1222.0,0.00035068,3]
[310331729,1704473547338,-500.0,0.00035068,3]
[310331730,1704473547349,-4236.93,0.00035068,3]
[310331731,1704473547360,-814.18,0.00035068,3]
[310331732,1704473547371,-2392.95,0.00035068,3]
[310331733,1704473547382,-1842.01,0.00035068,3]
[310331734,1704473547392,-645.88,0.00035068,3]
[310331735,1704473547403,-804.31,0.00035068,3]
[310331736,1704473547415,-780.05,0.00035068,3]
[310331737,1704473547426,-500.0,0.00035068,3]
[310331738,1704473547437,-20128.17,0.00035068,3]
[310331739,1704473547448,-618.16,0.00035068,3]
[310331740,1704473547458,-510.82,0.00035068,3]
[310331741,1704473547469,-620.46463774,0.00035068,3]
[310331742,1704473547480,-1056.97,0.00035068,3]
[310331743,1704473547491,-1483.19,0.00035068,3]
[310331744,1704473547501,-1304.64,0.00035068,3]
[310331745,1704473547512,-759.04,0.00035068,3]
[310331746,1704473547524,-1800.48,0.00035068,3]
[310331747,1704473547534,-3227.18,0.00035068,3]
[310331748,1704473547547,-2756.04,0.00035068,3]
[310331749,1704473547557,-768.62,0.00035068,3]
[310331750,1704473547569,-3583.58,0.00035068,3]
[310331751,1704473547581,-2834.13,0.00035068,3]
[310331752,1704473547592,-2515.3,0.00035068,3]
[310331753,1704473547602,-5299.03,0.00035068,3]
[310331754,1704473547613,-537.2,0.00035068,3]
[310331755,1704473547624,-664.57,0.00035068,3]
[310331756,1704473547634,-1051.18,0.00035068,3]
[310331757,1704473547644,-512.71,0.00035068,3]
[310331758,1704473547655,-1696.0,0.00035068,3]
[310331759,1704473547666,-2490.22,0.00035068,3]
[310331760,1704473547676,-3340.06,0.00035068,3]
[310331761,1704473547686,-1285.5,0.00035068,3]
[310331762,1704473547696,-500.0,0.00035068,3]
[310331763,1704473547707,-848.87,0.00035068,3]
[310331764,1704473547717,-606.02,0.00035068,3]
[310331765,1704473547728,-554.12,0.00035068,3]
[310331766,1704473547741,-11508.87,0.00035068,3]
[310331767,1704473547752,-1649.63,0.00035068,3]
[310331768,1704473547763,-500.0,0.00035068,3]
[310331769,1704473547774,-500.0,0.00035068,3]
[310331770,1704473547969,-1188.82,0.00035068,3]
[310331771,1704473547989,-687.41,0.00035068,3]
[310331772,1704473547999,-994.25,0.00035068,3]
[310331773,1704473548009,-1161.09,0.00035068,3]
[310331774,1704473548018,-500.0,0.00035068,3]
[310331775,1704473548028,-3783.36,0.00035068,3]
[310331776,1704473548038,-500.0,0.00035068,3]
[310331777,1704473548050,-907.04,0.00035068,3]
[310331778,1704473548059,-4030.69,0.00035068,3]
[310331779,1704473548069,-871.44,0.00035068,3]
[310331780,1704473548078,-2006.85,0.00035068,3]
[310331781,1704473548087,-8452.87,0.00035068,3]
[310331782,1704473548097,-1134.28,0.00035068,3]
[310331783,1704473548107,-566.66,0.00035068,3]
[310331784,1704473548117,-467.16,0.00035068,3]
[310331785,1704473548126,-1157.92,0.00035068,3]
[310331786,1704473548136,-225.18,0.00035068,3]
[310331787,1704473548146,-512.07,0.00035068,3]
[310331788,1704473548155,-1638.59,0.00035068,3]
[310331789,1704473548165,-1195.76,0.00035068,3]
[310331790,1704473548174,-7740.43,0.00035068,3]
[310331791,1704473548183,-500.0,0.00035068,3]
[310331792,1704473548193,-1402.48,0.00035068,3]
[310331793,1704473548202,-504.28,0.00035068,3]
[310331794,1704473548212,-1600.27,0.00035068,3]
[310331795,1704473548221,-2394.98,0.00035068,3]
[310331796,1704473548230,-1206.82,0.00035068,3]
[310331797,1704473548240,-1116.25,0.00035068,3]
[310331798,1704473548249,-1341.2,0.00035068,3]
[310331799,1704473548258,-1246.52,0.00035068,3]
[310331800,1704473548268,-500.0,0.00035068,3]
[310331801,1704473548277,-884.54,0.00035068,3]
[310331802,1704473548286,-3145.82,0.00035068,3]
[310331803,1704473548296,-834.29,0.00035068,3]
[310331804,1704473548306,-1393.24,0.00035068,3]
[310331805,1704473548315,-1151.41,0.00035068,3]
[310331806,1704473548325,-542.06,0.00035068,3]
[310331807,1704473548334,-790.38,0.00035068,3]
[310331808,1704473548344,-501.35,0.00035068,2]
[310331809,1704473548353,-456.40105,0.00035088,2]
[310331810,1704473548364,-157.03,0.000351,2]
[310331811,1704473548373,-157.03,0.000351,2]
[310331812,1704473548383,-157.03,0.000351,2]
[310331813,1704473548393,-157.03,0.000351,2]
[310331814,1704473548402,-151.65,0.00035125,2]
[310331815,1704473548411,-500.0,0.00035174,10]
[310331816,1704473548421,-456.40105,0.00035198,3]
[310331817,1704473548430,-150.0,0.000352,24]
[310331818,1704473548439,-500.0,0.0003521,2]
[310331819,1704473548448,-500.0,0.0003521,15]
[310331820,1704473548458,-2002.47885082,0.00035214,2]
[310331821,1704473548468,-208.0,0.0003522,2]
[310331822,1704473548477,-282.0,0.0003522,2]
[310331823,1704473548487,-456.40105,0.00035298,2]
[310331824,1704473548497,-154.0,0.000353,2]
[310331825,1704473548506,-119840.07497571,0.00035342,2]
[310331826,1704473548517,-785.36,0.00035342,3]
[310331827,1704473548527,-563.9,0.00035342,3]
[310331828,1704473548536,-500.0,0.00035342,3]
[310331829,1704473548545,-679.76,0.00035342,2]
[310331830,1704473548555,-500.0,0.00035342,3]
[310331831,1704473548565,-500.0,0.00035342,3]
[310331832,1704473548574,-500.0,0.00035342,3]
[310331833,1704473548584,-732.22,0.00035342,3]
[310331834,1704473548594,-500.0,0.00035342,3]
[310331835,1704473548603,-500.0,0.00035342,3]
[310331836,1704473548613,-557.95,0.00035342,3]
[310331837,1704473548622,-711.61,0.00035342,3]
[310331838,1704473548632,-777.32,0.00035342,3]
[310331839,1704473548642,-500.0,0.00035342,3]
[310331840,1704473548652,-33200.845596,0.00035342,2]
[310331841,1704473548661,-500.0,0.00035342,3]
[310331842,1704473548671,-512.33365762,0.00035342,3]
[310331843,1704473548681,-500.0,0.00035342,3]
[310331844,1704473548690,-240.71551806,0.00035342,3]
[310331845,1704473548699,-592.48,0.00035342,3]
[310331846,1704473548710,-213364.775055,0.00035342,2]
[310331847,1704473548720,-996.51,0.00035342,3]
[310331848,1704473548729,-480.25306852,0.00035342,3]
[310331849,1704473548739,-500.0,0.00035342,3]
[310331850,1704473548750,-500.0,0.00035342,3]
[310331851,1704473548760,-710.5,0.00035342,3]
[310331852,1704473548770,-500.0,0.00035342,3]
[310331853,1704473548780,-666.1,0.00035342,3]
[310331854,1704473548789,-537.71,0.00035342,3]
[310331855,1704473548800,-617.72,0.00035342,3]
[310331856,1704473548810,-500.0,0.00035342,3]
[310331857,1704473548820,-500.0,0.00035342,3]
[310331858,1704473548830,-647.0,0.00035342,3]
[310331859,1704473548839,-772.2,0.00035342,3]
[310331860,1704473548850,-537.87,0.00035342,3]
[310331861,1704473548860,-500.0,0.00035342,3]
[310331862,1704473548870,-1038.34,0.00035342,3]
[310331863,1704473548880,-500.0,0.00035342,3]
[310331864,1704473548889,-500.0,0.00035342,3]
[310331865,1704473548900,-544.08,0.00035342,3]
[310331866,1704473548913,-656.98,0.00035342,3]
[310331867,1704473548922,-500.0,0.00035342,3]
[310331868,1704473548932,-669.87,0.00035342,3]
[310331869,1704473548942,-694.38,0.00035342,3]
[310331870,1704473548953,-742.45,0.00035342,3]
[310331871,1704473548963,-544.16,0.00035342,3]
[310331872,1704473548974,-671.99,0.00035342,3]
[310331873,1704473548984,-669.51,0.00035342,3]
[310331874,1704473548994,-548.59,0.00035342,3]
[310331875,1704473549005,-1530.36,0.00035342,3]
[310331876,1704473549015,-583.81,0.00035342,3]
[310331877,1704473549024,-500.0,0.00035342,3]
[310331878,1704473549034,-500.0,0.00035342,3]
[310331879,1704473549043,-500.0,0.00035342,3]
[310331880,1704473549053,-500.0,0.00035342,3]
[310331881,1704473549063,-754.95,0.00035342,3]
[310331882,1704473549072,-500.0,0.00035342,3]
[310331883,1704473549082,-282.39470853,0.00035342,3]
[310331884,1704473549092,-1275.01,0.00035342,3]
[310331885,1704473549101,-500.0,0.00035342,3]
[310331886,1704473549111,-843.96,0.00035342,3]
[310331887,1704473549121,-207.89,0.00035342,3]
[310331888,1704473549131,-807.23,0.00035342,3]
[310331889,1704473549141,-500.0,0.00035342,3]
[310331890,1704473549151,-721.09,0.00035342,3]
[310331891,1704473549161,-619.12721421,0.00035342,3]
[310331892,1704473549170,-593.3,0.00035342,3]
[310331893,1704473549180,-500.0,0.00035342,3]
[310331894,1704473549189,-1537.14,0.00035342,3]
[310331895,1704473549199,-1588.31,0.00035342,3]
[310331896,1704473549208,-5973.26,0.00035342,3]
[310331897,1704473549218,-562.91,0.00035342,3]
[310331898,1704473549227,-1752.6,0.00035342,3]
[310331899,1704473549236,-3119.17,0.00035342,3]
[310331900,1704473549246,-1026.31,0.00035342,3]
[310331901,1704473549255,-1346.93,0.00035342,3]
[310331902,1704473549265,-500.0,0.00035342,3]
[310331903,1704473549275,-1520.28,0.00035342,3]
[310331904,1704473549283,-500.0,0.00035342,3]
[310331905,1704473549293,-621.93,0.00035342,3]
[310331906,1704473549304,-871.85,0.00035342,3]
[310331907,1704473549313,-522.5,0.00035342,3]
[310331908,1704473549322,-790.33,0.00035342,3]
[310331909,1704473549332,-2085.78,0.00035342,3]
[310331910,1704473549341,-651.26,0.00035342,3]
[310331911,1704473549350,-1658.28,0.00035342,3]
[310331912,1704473549359,-2368.93,0.00035342,3]
[310331913,1704473549369,-500.0,0.00035342,3]
[310331914,1704473549378,-2545.82,0.00035342,3]
[310331915,1704473549387,-500.0,0.00035342,3]
[310331916,1704473549396,-5035.78,0.00035342,3]
[310331917,1704473549405,-1615.12,0.00035342,3]
[310331918,1704473549414,-3964.99,0.00035342,3]
[310331919,1704473549423,-900.42,0.00035342,3]
[310331920,1704473549432,-527.61,0.00035342,3]
[310331921,1704473549442,-855.65,0.00035342,3]
[310331922,1704473549451,-500.0,0.00035342,3]
[310331923,1704473549461,-3932.79,0.00035342,3]
[310331924,1704473549471,-15880.58,0.00035342,3]
[310331925,1704473549480,-500.0,0.00035342,3]
[310331926,1704473549490,-630.59,0.00035342,3]
[310331927,1704473549499,-2821.0,0.00035342,3]
[310331928,1704473549509,-1090.66,0.00035342,3]
[310331929,1704473549518,-1511.19,0.00035342,3]
[310331930,1704473549527,-668.86,0.00035342,3]
[310331931,1704473549537,-1950.6,0.00035342,3]
[310331932,1704473549548,-7990.73,0.00035342,3]
[310331933,1704473549557,-2431.79,0.00035342,3]
[310331934,1704473549568,-1509.04,0.00035342,3]
[310331935,1704473549577,-752.06,0.00035342,3]
[310331936,1704473549588,-527.49,0.00035342,3]
[310331937,1704473549598,-555.27,0.00035342,3]
[310331938,1704473549608,-1289.91,0.00035342,3]
[310331939,1704473549618,-6614.78,0.00035342,3]
[310331940,1704473549628,-1136.89,0.00035342,3]
[310331941,1704473549638,-646.07,0.00035342,3]
[310331942,1704473549649,-500.0,0.00035342,3]
[310331943,1704473549658,-1154.77,0.00035342,3]
[310331944,1704473549668,-588.45,0.00035342,3]
[310331945,1704473549679,-1148.85,0.00035342,3]
[310331946,1704473549689,-864.89,0.00035342,3]
[310331947,1704473549699,-746.81,0.00035342,3]
[310331948,1704473549710,-1086.86,0.00035342,3]
[310331949,1704473549720,-1747.09,0.00035342,3]
[310331950,1704473549730,-585.14,0.00035342,3]
[310331951,1704473549740,-566.08949946,0.00035342,3]
[310331952,1704473549750,-898.8,0.00035342,3]
[310331953,1704473549759,-581.39,0.00035342,3]
[310331954,1704473549770,-2794.23,0.00035342,3]
[310331955,1704473549780,-680.71,0.00035342,3]
[310331956,1704473549790,-2835.72,0.00035342,3]
[310331957,1704473549803,-2858.86,0.00035342,3]
[310331958,1704473549812,-533.41,0.00035342,3]
[310331959,1704473549822,-2517.57,0.00035342,3]
[310331960,1704473549831,-500.0,0.00035342,3]
[310331961,1704473549841,-2511.86,0.00035342,3]
[310331962,1704473549851,-500.0,0.00035342,3]
[310331963,1704473549861,-2755.52,0.00035342,3]